fUST/lending_fUST_20250828
["ID","MTS","AMOUNT","RATE_DAILY","PERIOD"]
[381823392,1756359323990,-480.0,0.00019909,2]
[381823393,1756359324021,-502.0,0.00019909,2]
[381823394,1756359324053,-480.0,0.00019909,2]
[381823396,1756359324083,-480.0,0.00019909,2]
[381823398,1756359324115,-32.77,0.00019909,2]
[381823399,1756359324491,-447.23,0.00019909,2]
[381823400,1756359324526,-510.89404086,0.00019909,2]
[381823401,1756359324561,-600.99,0.00019909,2]
[381823402,1756359324590,-480.0,0.00019909,2]
[381823403,1756359324620,-480.0,0.00019909,2]
[381823404,1756359324851,-480.0,0.00019909,2]
[381823405,1756359324881,-480.0,0.00019909,2]
[381823406,1756359324911,-480.0,0.00019909,2]
[381823407,1756359324941,-593.03,0.00019909,2]
[381823408,1756359324971,-415.72191828,0.00019909,2]
[381823409,1756359325127,-480.0,0.00019897,2]
[381823410,1756359325158,-64.27808172,0.00019909,2]
[381823411,1756359325188,-480.0,0.00019909,2]
[381823412,1756359325217,-480.0,0.00019909,2]
[381823413,1756359325245,-500.0,0.00019909,2]
[381823414,1756359325275,-480.0,0.0001991,2]
[381823415,1756359325308,-759.5,0.0001991,2]
[381823416,1756359325337,-480.0,0.0001991,2]
[381823417,1756359325367,-480.0,0.0001991,2]
[381823418,1756359325397,-510.46871477,0.0001991,2]
[381823419,1756359325427,-91.51640702,0.0001991,2]
[381823420,1756359325644,-388.48359298,0.0001991,2]
[381823421,1756359325674,-480.0,0.0001991,2]
[381823422,1756359325703,-1000.89,0.0001991,2]
[381823423,1756359325732,-1000.89,0.0001991,2]
[381823424,1756359325761,-500.16,0.00019911,2]
[381823425,1756359325789,-480.0,0.00019911,2]
[381823426,1756359325820,-480.0,0.00019911,2]
[381823427,1756359325852,-480.0,0.00019911,2]
[381823428,1756359326229,-480.0,0.00019911,2]
[381823429,1756359326264,-480.0,0.00019911,2]
[381823430,1756359326296,-480.0,0.00019911,2]
[381823431,1756359326327,-480.0,0.00019911,2]
[381823432,1756359326356,-480.0,0.00019911,2]
[381823433,1756359326386,-480.0,0.00019911,2]
[381823434,1756359326415,-554.11,0.00019911,2]
[381823435,1756359326444,-480.0,0.00019911,2]
[381823436,1756359326472,-480.0,0.00019911,2]
[381823437,1756359326501,-480.0,0.00019911,2]
[381823438,1756359326685,-480.0,0.00019911,2]
[381823439,1756359326714,-480.33579519,0.00019911,2]
[381823440,1756359326743,-480.0,0.00019911,2]
[381823441,1756359326772,-480.0,0.00019911,2]
[381823442,1756359326801,-832.12,0.00019911,2]
[381823443,1756359326831,-480.0,0.00019911,2]
[381823444,1756359326859,-480.0,0.00019911,2]
[381823445,1756359326889,-480.0,0.00019911,2]
[381823446,1756359326920,-500.0,0.00019911,2]
[381823447,1756359326951,-135.09840962,0.00019911,2]
[381823448,1756359328435,-387.11197821,0.00019896,2]
[381823449,1756359328450,-92.88802179,0.00019896,2]
[381823450,1756359328459,-344.90159038,0.00019911,2]
[381823451,1756359328468,-394.33038783,0.00019911,2]
[381823452,1756359328497,-85.66961217,0.00019911,2]
[381823453,1756359328507,-394.33038783,0.00019911,2]
[381823454,1756359328529,-480.0,0.00019896,2]
[381823455,1756359328545,-1.03205823,0.00019896,2]
[381823456,1756359328555,-93.13041392,0.00019911,2]
[381823457,1756359328565,-385.83752785,0.00019911,2]
[381823458,1756359328584,-94.16247215,0.00019911,2]
[381823459,1756359328593,-405.83752785,0.00019911,2]
[381823460,1756359328608,-74.16247215,0.00019911,2]
[381823461,1756359328617,-405.83752785,0.00019911,2]
[381823466,1756359362383,-0.01,0.00018872,2]
[381823467,1756359362408,-9999.99,0.00018872,2]
[381823468,1756359362550,-232.44562072,0.00019794,2]
[381823469,1756359362579,-480.0,0.00019795,2]
[381823470,1756359362611,-742.31,0.00019796,2]
[381823471,1756359362642,-232.4456207,0.00019798,2]
[381823472,1756359362671,-232.4456207,0.00019802,2]
[381823473,1756359362701,-232.4456207,0.00019805,2]
[381823474,1756359362729,-232.4456207,0.00019809,2]
[381823475,1756359362756,-193.83489482,0.00019811,2]
[381823476,1756359362785,-519.51,0.00019894,2]
[381823477,1756359362814,-787.12,0.00019894,2]
[381823478,1756359362843,-480.0,0.00019896,2]
[381823479,1756359362872,-480.0,0.00019896,2]
[381823480,1756359363018,-480.0,0.00019896,2]
[381823481,1756359363053,-537.93,0.00019896,2]
[381823482,1756359363084,-480.75085376,0.00019896,2]
[381823483,1756359363118,-1041.1,0.00019896,2]
[381823484,1756359363149,-480.0,0.00019896,2]
[381823485,1756359363180,-603.98,0.00019896,2]
[381823486,1756359363213,-480.0,0.00019896,2]
[381823487,1756359363242,-480.0,0.00019896,2]
[381823488,1756359363271,-352.48829248,0.00019896,2]
[381823489,1756359363393,-127.51170752,0.00019896,2]
[381823490,1756359363422,-480.0,0.00019896,2]
[381823491,1756359363453,-480.0,0.00019896,2]
[381823492,1756359363483,-480.0,0.00019896,2]
[381823493,1756359363512,-480.0,0.00019896,2]
[381823494,1756359363541,-480.0,0.00019896,2]
[381823495,1756359363573,-585.89,0.00019896,2]
[381823496,1756359363601,-480.0,0.00019896,2]
[381823497,1756359363628,-442.84493388,0.00019896,2]
[381823498,1756359363657,-480.0,0.00019897,2]
[381823500,1756359363849,-500.0,0.00019795,2]
[381823501,1756359363881,-500.0,0.00019795,2]
[381823502,1756359363912,-500.0,0.00019795,2]
[381823503,1756359363943,-500.0,0.00019795,2]
[381823504,1756359363975,-500.0,0.00019795,2]
[381823505,1756359364005,-300.0,0.00019895,2]
[381823506,1756359364035,-887.15,0.00019897,2]
[381823507,1756359364260,-500.0,0.00019795,2]
[381823508,1756359364295,-500.0,0.00019795,2]
[381823509,1756359364325,-2625.71,0.00019897,2]
[381823510,1756359364355,-480.0,0.00019897,2]
[381823511,1756359364384,-480.0,0.00019897,2]
[381823512,1756359365021,-500.0,0.00019795,2]
[381823513,1756359365059,-575.60592973,0.00019795,2]
[381823514,1756359365089,-480.0,0.00019896,2]
[381823515,1756359365120,-1022.72,0.00019899,2]
[381823516,1756359365150,-1229.53,0.00019899,2]
[381823517,1756359365272,-2617.35,0.00019899,2]
[381823518,1756359365469,-480.0,0.00019897,2]
[381823519,1756359365503,-3573.94671731,0.000199,2]
[381823520,1756359365745,-480.0,0.00019896,2]
[381823521,1756359365780,-1892.11656538,0.000199,2]
[381823522,1756359365809,-480.0,0.00019909,2]
[381823523,1756359365838,-480.0,0.00019909,2]
[381823524,1756359365868,-480.0,0.00019909,2]
[381823525,1756359365899,-560.86,0.00019909,2]
[381823526,1756359365929,-480.0,0.00019909,2]
[381823527,1756359365960,-74.16247215,0.00019911,2]
[381823528,1756359366653,-480.0,0.00019894,2]
[381823529,1756359366663,-480.0,0.00019896,2]
[381823530,1756359366673,-480.0,0.00019896,2]
[381823531,1756359366684,-480.0,0.00019909,2]
[381823532,1756359366694,-500.0,0.00019911,2]
[381823533,1756359366704,-480.0,0.00019911,2]
[381823534,1756359366714,-195.19916919,0.00019911,2]
[381823535,1756359366752,-284.80083081,0.00019911,2]
[381823536,1756359366762,-195.19916919,0.00019911,2]
[381823537,1756359366783,-284.80083081,0.00019911,2]
[381823538,1756359366793,-480.0,0.00019911,2]
[381823539,1756359366802,-480.0,0.00019911,2]
[381823540,1756359366811,-480.0,0.00019911,2]
[381823541,1756359366820,-480.0,0.00019911,2]
[381823542,1756359366830,-480.0,0.00019911,2]
[381823543,1756359366840,-480.0,0.00019911,2]
[381823544,1756359366850,-480.0,0.00019911,2]
[381823545,1756359366860,-480.0,0.00019911,2]
[381823546,1756359366869,-482.60051265,0.00019911,2]
[381823547,1756359366878,-482.46732195,0.00019911,2]
[381823548,1756359366887,-376.19461728,0.00019911,2]
[381823549,1756359366934,-480.0,0.00019851,2]
[381823550,1756359366950,-1676.0,0.00019851,2]
[381823551,1756359366961,-103.80538272,0.00019911,2]
[381823552,1756359366975,-112.31118266,0.00019911,2]
[381823553,1756359366996,-367.68881734,0.00019911,2]
[381823554,1756359367007,-112.31118266,0.00019911,2]
[381823555,1756359367029,-367.68881734,0.00019911,2]
[381823556,1756359367039,-112.31118266,0.00019911,2]
[381823557,1756359367055,-367.68881734,0.00019911,2]
[381823558,1756359367064,-112.31118266,0.00019911,2]
[381823559,1756359367085,-367.68881734,0.00019911,2]
[381823560,1756359367095,-193.17118266,0.00019911,2]
[381823561,1756359367112,-286.82881734,0.00019911,2]
[381823562,1756359367121,-193.17118266,0.00019911,2]
[381823563,1756359367141,-74.16247215,0.00019911,2]
[381823564,1756359367160,-145.73192494,0.00019911,2]
[381823565,1756359432568,-485.90853517,0.00019794,2]
[381823566,1756359432599,-480.0,0.00019796,2]
[381823567,1756359432630,-2319.19,0.00019796,2]
[381823568,1756359432660,-813.5,0.00019894,2]
[381823569,1756359432691,-546.61,0.00019894,2]
[381823570,1756359432813,-1041.24,0.00019894,2]
[381823571,1756359432842,-480.0,0.00019894,2]
[381823572,1756359432871,-517.46,0.00019894,2]
[381823573,1756359432902,-480.0,0.00019894,2]
[381823574,1756359432934,-238.44777344,0.00019895,2]
[381823575,1756359432966,-548.40065886,0.00019895,2]
[381823576,1756359432997,-244.11972094,0.00019896,2]
[381823577,1756359433241,-480.0,0.00019896,2]
[381823578,1756359433272,-480.0,0.00019896,2]
[381823579,1756359433302,-414.00965903,0.00019896,2]
[381823580,1756359433468,-480.0,0.00019896,2]
[381823581,1756359433498,-480.0,0.00019896,2]
[381823582,1756359433529,-480.0,0.00019896,2]
[381823583,1756359433560,-480.0,0.00019896,2]
[381823584,1756359433591,-480.0,0.00019896,2]
[381823585,1756359433621,-480.0,0.00019896,2]
[381823586,1756359433652,-480.0,0.00019896,2]
[381823587,1756359433682,-480.0,0.00019896,2]
[381823588,1756359433712,-480.0,0.00019896,2]
[381823589,1756359433743,-480.0,0.00019896,2]
[381823590,1756359433939,-480.0,0.00019896,2]
[381823591,1756359433969,-480.0,0.00019896,2]
[381823592,1756359433999,-877.55,0.00019896,2]
[381823593,1756359434033,-766.54,0.00019896,2]
[381823594,1756359434063,-480.0,0.00019896,2]
[381823595,1756359434095,-598.07,0.00019896,2]
[381823596,1756359434126,-480.0,0.00019896,2]
[381823597,1756359434156,-480.80457188,0.00019896,2]
[381823598,1756359434187,-234.08085624,0.00019896,2]
[381823599,1756359434479,-245.91914376,0.00019896,2]
[381823600,1756359434509,-480.0,0.00019896,2]
[381823601,1756359434540,-480.0,0.00019896,2]
[381823602,1756359434570,-1174.19,0.00019896,2]
[381823603,1756359434600,-480.0,0.00019896,2]
[381823604,1756359434630,-480.0,0.00019896,2]
[381823605,1756359434662,-480.0,0.00019896,2]
[381823606,1756359434695,-480.0,0.00019896,2]
[381823607,1756359434726,-480.0,0.00019896,2]
[381823608,1756359434912,-480.0,0.00019896,2]
[381823609,1756359434943,-480.0,0.00019896,2]
[381823610,1756359434974,-1156.09,0.00019897,2]
[381823611,1756359435005,-480.0,0.00019897,2]
[381823612,1756359435041,-480.0,0.00019897,2]
[381823613,1756359435072,-538.56,0.00019899,2]
[381823614,1756359435103,-568.30322575,0.00019899,2]
[381823615,1756359435134,-20.2935485,0.00019899,2]
[381823616,1756359435307,-1593.5164515,0.00019899,2]
[381823617,1756359435338,-480.0,0.00019899,2]
[381823618,1756359435369,-804.04,0.00019899,2]
[381823619,1756359435403,-2010.35,0.00019899,2]
[381823620,1756359435578,-480.0,0.00019894,2]
[381823621,1756359435614,-480.0,0.00019909,2]
[381823622,1756359435654,-586.47,0.00019909,2]
[381823623,1756359435690,-480.0,0.00019909,2]
[381823624,1756359435728,-754.93,0.00019909,2]
[381823625,1756359435767,-553.92,0.00019909,2]
[381823626,1756359435806,-952.69,0.00019909,2]
[381823627,1756359435844,-480.0,0.00019909,2]
[381823628,1756359435914,-510.67,0.00019909,2]
[381823629,1756359435952,-480.0,0.00019909,2]
[381823630,1756359435989,-480.0,0.00019909,2]
[381823631,1756359436024,-496.27,0.00019909,2]
[381823632,1756359436064,-480.0,0.00019909,2]
[381823633,1756359436101,-660.56,0.0001991,2]
[381823634,1756359436139,-766.44050294,0.0001991,2]
[381823635,1756359436178,-480.0,0.0001991,2]
[381823636,1756359436211,-500.0,0.00019911,2]
[381823637,1756359436247,-66.93442025,0.00019911,2]
[381823638,1756359436504,-480.0,0.00019911,2]
[381823639,1756359436541,-480.0,0.00019911,2]
[381823640,1756359436578,-480.0,0.00019911,2]
[381823641,1756359436612,-480.0,0.00019911,2]
[381823642,1756359436648,-481.06706384,0.00019911,2]
[381823643,1756359436682,-480.0,0.00019911,2]
[381823644,1756359436716,-480.0,0.00019911,2]
[381823645,1756359436750,-480.0,0.00019911,2]
[381823646,1756359436784,-480.0,0.00019911,2]
[381823647,1756359436818,-480.0,0.00019911,2]
[381823648,1756359438703,-247.49442025,0.00019896,2]
[381823649,1756359438719,-232.50557975,0.00019896,2]
[381823650,1756359438729,-247.49442025,0.00019911,2]
[381823651,1756359438744,-232.50557975,0.00019911,2]
[381823652,1756359438754,-247.49442025,0.00019911,2]
[381823653,1756359438770,-232.50557975,0.00019911,2]
[381823654,1756359438779,-247.49442025,0.00019911,2]
[381823655,1756359438800,-232.50557975,0.00019911,2]
[381823656,1756359438809,-248.56148409,0.00019911,2]
[381823657,1756359438825,-231.43851591,0.00019911,2]
[381823658,1756359438834,-248.56148409,0.00019911,2]
[381823659,1756359438850,-231.43851591,0.00019911,2]
[381823660,1756359438860,-248.56148409,0.00019911,2]
[381823661,1756359438876,-231.43851591,0.00019911,2]
[381823662,1756359438886,-248.56148409,0.00019911,2]
[381823663,1756359438902,-352.33851591,0.00019911,2]
[381823664,1756359438912,-127.66148409,0.00019911,2]
[381823665,1756359438927,-480.0,0.00019911,2]
[381823666,1756359438947,-397.87587232,0.00019911,2]
[381823667,1756359482647,-199.6988805,0.0001895,2]
[381823668,1756359482677,-229.57683503,0.0001895,2]
[381823669,1756359482706,-1540.11497165,0.0001895,2]
[381823670,1756359482735,-762.162036,0.0001905,2]
[381823671,1756359482763,-199.6988805,0.00019381,2]
[381823672,1756359482792,-203.73446725,0.00019696,2]
[381823673,1756359482912,-3730.03785814,0.00019697,2]
[381823674,1756359482927,-10000.01,0.00019697,2]
[381823675,1756359482968,-10000.01,0.00019697,2]
[381823676,1756359483177,-300.0,0.00019696,2]
[381823677,1756359483215,-9400.01,0.00019697,2]
[381823678,1756359483308,-10000.01,0.00019697,2]
[381823679,1756359483543,-10000.01,0.00019697,2]
[381823680,1756359483707,-10000.01,0.00019697,2]
[381823681,1756359483831,-10000.01,0.00019697,2]
[381823682,1756359483980,-10000.01,0.00019697,2]
[381823683,1756359484124,-10000.01,0.00019697,2]
[381823684,1756359492651,-10000.01,0.00019697,2]
[381823685,1756359492812,-10000.01,0.00019697,2]
[381823686,1756359492962,-10000.01,0.00019697,2]
[381823687,1756359493216,-10000.01,0.00019697,2]
[381823688,1756359493468,-10000.01,0.00019697,2]
[381823689,1756359493710,-10000.01,0.00019697,2]
[381823690,1756359493895,-10000.01,0.00019697,2]
[381823691,1756359494054,-10000.01,0.00019697,2]
[381823692,1756359494408,-10000.01,0.00019697,2]
[381823693,1756359494576,-10000.01,0.00019697,2]
[381823694,1756359502679,-10000.01,0.00019697,2]
[381823695,1756359502830,-10000.01,0.00019697,2]
[381823696,1756359503050,-10000.01,0.00019697,2]
[381823697,1756359503214,-1388.73868367,0.00019697,2]
[381823698,1756359503237,-7222.53263266,0.00019697,2]
[381823699,1756359503387,-711.38,0.00019795,2]
[381823700,1756359503417,-480.0,0.00019796,2]
[381823701,1756359503450,-480.0,0.00019796,2]
[381823702,1756359503481,-1127.21,0.00019894,2]
[381823703,1756359503512,-1346.82,0.00019894,2]
[381823704,1756359503542,-480.0,0.00019894,2]
[381823705,1756359503572,-269.19,0.00019894,2]
[381823706,1756359503690,-210.81,0.00019894,2]
[381823707,1756359503745,-511.72,0.00019894,2]
[381823708,1756359503774,-480.0,0.00019896,2]
[381823709,1756359503805,-480.0,0.00019896,2]
[381823710,1756359503837,-480.0,0.00019896,2]
[381823711,1756359503868,-480.0,0.00019896,2]
[381823712,1756359503900,-480.0,0.00019896,2]
[381823713,1756359503930,-494.31,0.00019896,2]
[381823714,1756359503959,-480.0,0.00019896,2]
[381823715,1756359503987,-480.0,0.00019896,2]
[381823716,1756359504016,-480.0,0.00019896,2]
[381823717,1756359504127,-561.47,0.00019896,2]
[381823718,1756359504158,-480.0,0.00019896,2]
[381823719,1756359504189,-480.0,0.00019896,2]
[381823720,1756359504220,-480.0,0.00019896,2]
[381823721,1756359504255,-480.0,0.00019896,2]
[381823722,1756359504287,-195.70252303,0.00019896,2]
[381823723,1756359504320,-480.0,0.00019896,2]
[381823724,1756359504352,-480.0,0.00019896,2]
[381823725,1756359504385,-480.0,0.00019896,2]
[381823726,1756359504416,-480.0,0.00019896,2]
[381823727,1756359504447,-325.66495394,0.00019896,2]
[381823728,1756359504650,-154.33504606,0.00019896,2]
[381823729,1756359504680,-480.0,0.00019896,2]
[381823730,1756359504711,-480.0,0.00019896,2]
[381823731,1756359504741,-480.0,0.00019896,2]
[381823732,1756359504772,-480.0,0.00019896,2]
[381823733,1756359504802,-480.0,0.00019896,2]
[381823734,1756359504832,-480.0,0.00019896,2]
[381823735,1756359504865,-591.48655732,0.00019896,2]
[381823736,1756359504896,-480.0,0.00019896,2]
[381823737,1756359504929,-508.46,0.00019896,2]
[381823738,1756359504960,-291.44679324,0.00019896,2]
[381823739,1756359505144,-188.55320676,0.00019896,2]
[381823740,1756359505174,-174.42167068,0.00019896,2]
[381823741,1756359505509,-480.0,0.00019896,2]
[381823742,1756359505541,-552.11,0.00019896,2]
[381823743,1756359505571,-480.0,0.00019896,2]
[381823744,1756359505603,-480.0,0.00019896,2]
[381823745,1756359505635,-480.0,0.00019896,2]
[381823746,1756359505667,-480.0,0.00019896,2]
[381823747,1756359505698,-480.0,0.00019896,2]
[381823748,1756359505729,-480.0,0.00019896,2]
[381823749,1756359506060,-2508.29,0.00019896,2]
[381823750,1756359506096,-480.88390992,0.00019896,2]
[381823751,1756359506131,-480.0,0.00019896,2]
[381823752,1756359506163,-480.0,0.00019896,2]
[381823753,1756359506194,-483.70054721,0.00019896,2]
[381823754,1756359506228,-480.59262416,0.00019896,2]
[381823755,1756359507223,-221.30044913,0.00019896,2]
[381823756,1756359507248,-258.69955087,0.00019896,2]
[381823757,1756359507257,-221.30044913,0.00019896,2]
[381823758,1756359507282,-141.83929087,0.00019896,2]
[381823759,1756359507292,-338.16070913,0.00019896,2]
[381823760,1756359507313,-263.07929087,0.00019896,2]
[381823761,1756359507324,-220.62125634,0.00019896,2]
[381823762,1756359507346,-259.37874366,0.00019896,2]
[381823763,1756359507356,-221.2138805,0.00019896,2]
[381823764,1756359507372,-173.07583742,0.00019896,2]
[381823765,1756359515097,303.54965333,0.000186,2]
[381823766,1756359532735,-449.94805635,0.00019795,2]
[381823767,1756359532765,-2368.53,0.00019795,2]
[381823768,1756359532794,-556.73,0.00019796,2]
[381823769,1756359532822,-861.0,0.00019894,2]
[381823770,1756359532852,-723.8038873,0.00019894,2]
[381823771,1756359532949,-79.9861127,0.00019894,2]
[381823772,1756359532992,-89.36274647,0.00019896,2]
[381823773,1756359533021,-480.0,0.00019896,2]
[381823774,1756359533298,-480.0,0.00019896,2]
[381823775,1756359533331,-405.81863004,0.00019896,2]
[381823776,1756359533361,-744.38,0.00019896,2]
[381823777,1756359533390,-480.0,0.00019896,2]
[381823778,1756359533420,-480.0,0.00019896,2]
[381823779,1756359533450,-480.0,0.00019896,2]
[381823780,1756359533478,-480.0,0.00019896,2]
[381823781,1756359533509,-480.0,0.00019896,2]
[381823782,1756359533539,-318.46143965,0.00019896,2]
[381823783,1756359533625,-163.96436768,0.00019896,2]
[381823784,1756359533654,-480.0,0.00019896,2]
[381823785,1756359533683,-739.86,0.00019896,2]
[381823786,1756359533711,-480.0,0.00019896,2]
[381823787,1756359533741,-480.0,0.00019896,2]
[381823788,1756359533772,-1926.59,0.00019896,2]
[381823789,1756359533799,-480.0,0.00019896,2]
[381823790,1756359533876,-559.51,0.00019896,2]
[381823791,1756359533906,-480.0,0.00019896,2]
[381823792,1756359533935,-480.0,0.00019896,2]
[381823793,1756359533964,-875.92,0.00019897,2]
[381823794,1756359533994,-348.22120734,0.00019897,2]
[381823795,1756359534023,-577.43,0.00019897,2]
[381823796,1756359534055,-480.0,0.00019899,2]
[381823797,1756359534085,-480.0,0.00019899,2]
[381823798,1756359534259,-3575.65,0.00019899,2]
[381823799,1756359534288,-480.0,0.00019899,2]
[381823800,1756359534317,-50.45,0.00019899,2]
[381823801,1756359534422,-1787.81,0.00019899,2]
[381823802,1756359534451,-480.0,0.00019899,2]
[381823803,1756359534479,-480.0,0.00019899,2]
[381823804,1756359534510,-480.0,0.00019899,2]
[381823805,1756359534541,-522.45585781,0.00019899,2]
[381823806,1756359534862,-3366.49,0.00019899,2]
[381823807,1756359534892,-480.0,0.00019899,2]
[381823808,1756359535149,-480.0,0.00019896,2]
[381823809,1756359535181,-3675.10276298,0.000199,2]
[381823810,1756359535306,-1689.80447404,0.000199,2]
[381823811,1756359535336,-480.0,0.00019909,2]
[381823812,1756359535368,-480.0,0.00019909,2]
[381823813,1756359535397,-480.0,0.00019909,2]
[381823814,1756359535426,-480.0,0.00019909,2]
[381823815,1756359535455,-480.0,0.00019909,2]
[381823816,1756359535483,-205.8601845,0.00019909,2]
[381823817,1756359535513,-480.0,0.0001991,2]
[381823818,1756359535658,-480.0,0.00019896,2]
[381823819,1756359535688,-611.38,0.0001991,2]
[381823820,1756359535722,-480.0,0.00019911,2]
[381823821,1756359535754,-519.29,0.00019911,2]
[381823822,1756359536103,-3520.9337322,0.00019911,2]
[381823823,1756359536135,-1689.80447404,0.00019911,2]
[381823824,1756359536156,-480.0,0.00019911,2]
[381823825,1756359536176,-127.93179376,0.00019911,2]
[381823826,1756359536185,-352.06820624,0.00019911,2]
[381823827,1756359536206,-261.11179376,0.00019911,2]
[381823828,1756359536216,-218.88820624,0.00019911,2]
[381823829,1756359536233,-480.0,0.00019911,2]
[381823830,1756359536248,-206.59179376,0.00019911,2]
[381823831,1756359536258,-273.40820624,0.00019911,2]
[381823832,1756359536274,-205.8601845,0.00019911,2]
[381823833,1756359536302,-0.73160926,0.00019911,2]
[381823834,1756359536312,-479.26839074,0.00019911,2]
[381823835,1756359536332,-448.68068292,0.00019911,2]
[381823836,1756359536356,-480.0,0.00019911,2]
[381823837,1756359536372,-430.30092634,0.00019911,2]
[381823838,1756359536382,-181.07907366,0.00019911,2]
[381823839,1756359536397,-480.0,0.00019911,2]
[381823840,1756359536414,-595.11092634,0.00019911,2]
[381823841,1756359536424,-480.0,0.00019911,2]
[381823842,1756359536434,-482.0082733,0.00019911,2]
[381823843,1756359536443,-615.38,0.00019911,2]
[381823844,1756359536452,-1147.02,0.00019911,2]
[381823845,1756359536462,-586.13,0.00019911,2]
[381823846,1756359536471,-480.0,0.00019911,2]
[381823847,1756359536481,-1952.31080036,0.00019911,2]
[381823848,1756359592794,-400.0,0.00019696,2]
[381823849,1756359592837,-2269.84,0.00019795,2]
[381823850,1756359592868,-480.0,0.00019795,2]
[381823851,1756359592898,-480.0,0.00019795,2]
[381823852,1756359592931,-998.09,0.00019796,2]
[381823853,1756359592963,-264.15,0.00019894,2]
[381823854,1756359593517,-215.85,0.00019894,2]
[381823855,1756359593547,-1066.37,0.00019894,2]
[381823856,1756359593576,-480.0,0.00019894,2]
[381823857,1756359593605,-480.0,0.00019894,2]
[381823858,1756359593634,-480.514122,0.00019894,2]
[381823859,1756359593664,-1040.77,0.00019894,2]
[381823860,1756359593693,-480.0,0.00019896,2]
[381823861,1756359593721,-206.85365364,0.00019896,2]
[381823862,1756359593749,-480.0,0.00019896,2]
[381823863,1756359593834,-480.0,0.00019896,2]
[381823864,1756359593864,-601.26,0.00019896,2]
[381823865,1756359593892,-480.4814111,0.00019896,2]
[381823866,1756359593926,-480.0,0.00019896,2]
[381823867,1756359593956,-1846.31,0.00019896,2]
[381823868,1756359593984,-480.0,0.00019896,2]
[381823869,1756359594013,-574.6271778,0.00019896,2]
[381823870,1756359594058,-114.6528222,0.00019896,2]
[381823871,1756359594087,-953.33,0.00019896,2]
[381823872,1756359594115,-480.0,0.00019896,2]
[381823873,1756359594143,-480.0,0.00019896,2]
[381823874,1756359594173,-480.0,0.00019896,2]
[381823875,1756359594202,-480.0,0.00019896,2]
[381823876,1756359594231,-647.37,0.00019896,2]
[381823877,1756359594259,-480.0,0.00019896,2]
[381823878,1756359594288,-480.0,0.00019896,2]
[381823879,1756359594316,-242.09750446,0.00019896,2]
[381823880,1756359594360,-325.10934668,0.00019896,2]
[381823881,1756359594388,-481.50782309,0.00019896,2]
[381823882,1756359594416,-789.16,0.00019896,2]
[381823883,1756359594445,-760.16,0.00019896,2]
[381823884,1756359594473,-735.93,0.00019896,2]
[381823885,1756359594502,-273.30348348,0.00019896,2]
[381823886,1756359594533,-480.0,0.00019896,2]
[381823887,1756359594565,-480.0,0.00019896,2]
[381823888,1756359594596,-480.0,0.00019896,2]
[381823889,1756359595160,-480.0,0.00019896,2]
[381823890,1756359595190,-480.0,0.00019896,2]
[381823891,1756359595219,-480.0,0.00019896,2]
[381823892,1756359595249,-480.0,0.00019896,2]
[381823893,1756359595278,-480.97961742,0.00019896,2]
[381823894,1756359595308,-480.0,0.00019897,2]
[381823895,1756359595337,-432.9926616,0.00019898,2]
[381823896,1756359595369,-260.67071404,0.00019898,2]
[381823897,1756359595397,-480.0,0.00019899,2]
[381823898,1756359595426,-782.80401388,0.00019899,2]